fUSD/lending_fUSD_20241215
["ID","MTS","AMOUNT","RATE_DAILY","PERIOD"]
[345500444,1734300636358,-500.0,0.00020999,3]
[345500445,1734300636367,-635.34,0.00020999,3]
[345500446,1734300636376,-347.94,0.00020999,3]
[345500447,1734300636386,-500.0,0.00020999,3]
[345500448,1734300636396,-464.12496438,0.00020999,2]
[345500449,1734300636406,-637.31696008,0.00020999,2]
[345500450,1734300636415,-500.0,0.00020999,2]
[345500451,1734300636424,-569.96539058,0.00020999,2]
[345500452,1734300636434,-500.0,0.00020999,2]
[345500453,1734300636443,-500.0,0.00020999,2]
[345500454,1734300636453,-500.0,0.00020999,2]
[345500455,1734300636463,-637.42229184,0.00020999,2]
[345500456,1734300636472,-500.0,0.00020999,2]
[345500457,1734300636481,-500.0,0.00020999,2]
[345500458,1734300636491,-500.0,0.00020999,2]
[345500459,1734300636501,-500.0,0.00020999,2]
[345500460,1734300636510,-500.0,0.00020999,2]
[345500461,1734300636520,-531.60088921,0.00020999,2]
[345500462,1734300636529,-336.84454324,0.00020999,2]
[345500463,1734300636538,-500.0,0.00020999,2]
[345500464,1734300636548,-500.0,0.00020999,2]
[345500465,1734300636557,-304.04061007,0.00020999,2]
[345500466,1734300636567,-500.0,0.00020999,2]
[345500467,1734300636576,-500.0,0.00020999,2]
[345500468,1734300636585,-500.0,0.00020999,2]
[345500469,1734300636594,-500.0,0.00020999,2]
[345500470,1734300636603,-500.0,0.00020999,2]
[345500471,1734300636611,-500.0,0.00020999,2]
[345500472,1734300636620,-500.0,0.00020999,2]
[345500473,1734300636629,-200.0,0.00020999,2]
[345500474,1734300636638,-500.0,0.00020999,2]
[345500475,1734300636647,-500.0,0.00020999,2]
[345500476,1734300636656,-500.0,0.00020999,2]
[345500477,1734300636665,-500.0,0.00020999,2]
[345500478,1734300636675,-500.0,0.00020999,2]
[345500479,1734300636683,-500.0,0.00020999,2]
[345500480,1734300636693,-500.0,0.00020999,2]
[345500481,1734300636702,-500.0,0.00020999,2]
[345500482,1734300636715,-500.0,0.00020999,2]
[345500483,1734300636724,-500.0,0.00020999,2]
[345500484,1734300636733,-500.0,0.00020999,2]
[345500485,1734300636743,-250.0,0.00020999,2]
[345500486,1734300636752,-70572.35401966,0.00021,10]
[345500487,1734300636761,-500.0,0.00021,2]
[345500488,1734300636771,-500.0,0.00021,2]
[345500489,1734300636781,-500.0,0.00021,2]
[345500490,1734300636791,-500.0,0.00021,2]
[345500491,1734300636800,-500.0,0.00021,2]
[345500492,1734300636810,-500.0,0.00021,2]
[345500493,1734300636820,-500.0,0.00021,2]
[345500494,1734300636830,-500.0,0.00021,2]
[345500495,1734300636839,-500.0,0.00021,2]
[345500496,1734300636849,-500.0,0.00021,2]
[345500497,1734300636858,-500.0,0.00021,2]
[345500498,1734300636868,-251.0,0.00021,2]
[345500499,1734300636879,-255.17331888,0.00021,2]
[345500500,1734300636888,-87850.0,0.00021,9]
[345500501,1734300636897,-703.39961618,0.00021,5]
[345500502,1734300636907,-1421.87190707,0.00021,2]
[345500503,1734300636916,-17987.13173632,0.00021,2]
[345500504,1734300636926,-3122.44504982,0.00021,2]
[345500505,1734300636935,-3600.0,0.00021,22]
[345500506,1734300636945,-10000.0,0.00021,2]
[345500507,1734300636955,-22608.1560663,0.00021,3]
[345500508,1734300636968,-21357.39708269,0.00021,5]
[345500509,1734300636977,-17319.4966454,0.00021,5]
[345500510,1734300636987,-2663.35225549,0.00021,60]
[345500511,1734300636995,-10000.0,0.00021,2]
[345500512,1734300637005,-83545.0,0.00021,7]
[345500513,1734300637014,-2110.0,0.00021,2]
[345500514,1734300637024,-534.4333,0.00021,2]
[345500515,1734300637034,-500.0,0.00021,2]
[345500516,1734300637043,-500.0,0.00021,2]
[345500517,1734300637053,-500.0,0.00021,2]
[345500518,1734300637063,-500.0,0.00021,2]
[345500519,1734300637072,-500.0,0.00021,2]
[345500520,1734300637082,-500.0,0.00021,2]
[345500521,1734300637091,-500.0,0.00021,2]
[345500522,1734300637101,-500.0,0.00021,2]
[345500523,1734300637110,-500.0,0.00021,2]
[345500524,1734300637119,-500.0,0.00021,2]
[345500525,1734300637129,-500.0,0.00021,2]
[345500526,1734300637138,-500.0,0.00021,2]
[345500527,1734300637148,-500.0,0.00021,2]
[345500528,1734300637157,-500.0,0.00021,2]
[345500529,1734300637166,-500.0,0.00021,2]
[345500530,1734300637176,-500.0,0.00021,2]
[345500531,1734300637185,-500.0,0.00021,2]
[345500532,1734300637196,-500.0,0.00021,2]
[345500533,1734300637205,-500.0,0.00021,2]
[345500534,1734300637216,-500.0,0.00021,2]
[345500535,1734300637225,-500.0,0.00021,2]
[345500536,1734300637234,-500.0,0.00021,2]
[345500537,1734300637244,-500.0,0.00021,2]
[345500538,1734300637254,-500.0,0.00021,2]
[345500539,1734300637263,-500.0,0.00021,2]
[345500540,1734300637273,-500.0,0.00021,2]
[345500541,1734300637283,-500.0,0.00021,2]
[345500542,1734300637292,-500.0,0.00021,2]
[345500543,1734300637303,-500.0,0.00021,2]
[345500544,1734300637313,-500.0,0.00021,2]
[345500545,1734300637322,-500.0,0.00021,2]
[345500546,1734300637332,-500.0,0.00021,2]
[345500547,1734300637343,-500.0,0.00021,2]
[345500548,1734300637353,-500.0,0.00021,2]
[345500549,1734300637362,-500.0,0.00021,2]
[345500550,1734300637372,-500.0,0.00021,2]
[345500551,1734300637381,-500.0,0.00021,2]
[345500552,1734300637390,-500.0,0.00021,2]
[345500553,1734300637400,-500.0,0.00021,2]
[345500554,1734300637411,-500.0,0.00021,2]
[345500555,1734300637421,-500.0,0.00021,2]
[345500556,1734300637431,-500.0,0.00021,2]
[345500557,1734300637441,-500.0,0.00021,2]
[345500558,1734300637451,-500.0,0.00021,2]
[345500559,1734300637461,-500.0,0.00021,2]
[345500560,1734300637471,-500.0,0.00021,2]
[345500561,1734300637480,-500.0,0.00021,2]
[345500562,1734300637490,-500.0,0.00021,2]
[345500563,1734300637499,-500.0,0.00021,2]
[345500564,1734300637508,-500.0,0.00021,2]
[345500565,1734300637519,-500.0,0.00021,2]
[345500566,1734300637530,-500.0,0.00021,2]
[345500567,1734300637539,-500.0,0.00021,2]
[345500568,1734300637550,-500.0,0.00021,2]
[345500569,1734300637559,-500.0,0.00021,2]
[345500570,1734300637569,-500.0,0.00021,2]
[345500571,1734300637578,-500.0,0.00021,2]
[345500572,1734300637588,-500.0,0.00021,2]
[345500573,1734300637597,-500.0,0.00021,2]
[345500574,1734300637607,-500.0,0.00021,2]
[345500575,1734300637616,-500.0,0.00021,2]
[345500576,1734300637626,-500.0,0.00021,2]
[345500577,1734300637637,-500.0,0.00021,2]
[345500578,1734300637646,-500.0,0.00021,2]
[345500579,1734300637656,-500.0,0.00021,2]
[345500580,1734300637666,-500.0,0.00021,2]
[345500581,1734300637675,-500.0,0.00021,2]
[345500582,1734300637684,-500.0,0.00021,2]
[345500583,1734300637694,-500.0,0.00021,2]
[345500584,1734300637707,-500.0,0.00021,2]
[345500585,1734300637718,-500.0,0.00021,2]
[345500586,1734300637727,-500.0,0.00021,2]
[345500587,1734300637736,-500.0,0.00021,2]
[345500588,1734300637747,-500.0,0.00021,2]
[345500589,1734300637758,-500.0,0.00021,2]
[345500590,1734300637768,-500.0,0.00021,2]
[345500591,1734300637779,-500.0,0.00021,2]
[345500592,1734300637790,-500.0,0.00021,2]
[345500593,1734300637800,-500.0,0.00021,2]
[345500594,1734300637809,-500.0,0.00021,2]
[345500595,1734300637821,-500.0,0.00021,2]
[345500596,1734300637833,-500.0,0.00021,2]
[345500597,1734300637843,-500.0,0.00021,2]
[345500598,1734300637852,-500.0,0.00021,2]
[345500599,1734300637861,-500.0,0.00021,2]
[345500600,1734300637871,-500.0,0.00021,2]
[345500601,1734300637880,-500.0,0.00021,2]
[345500602,1734300637890,-500.0,0.00021,2]
[345500603,1734300637899,-500.0,0.00021,2]
[345500604,1734300637909,-500.0,0.00021,2]
[345500606,1734300637918,-500.0,0.00021,2]
[345500607,1734300637928,-500.0,0.00021,2]
[345500608,1734300637937,-500.0,0.00021,2]
[345500609,1734300637946,-500.0,0.00021,2]
[345500611,1734300637956,-500.0,0.00021,2]
[345500612,1734300637967,-500.0,0.00021,2]
[345500613,1734300637976,-500.0,0.00021,2]
[345500614,1734300637985,-500.0,0.00021,2]
[345500615,1734300637996,-500.0,0.00021,2]
[345500616,1734300638005,-500.0,0.00021,2]
[345500617,1734300638015,-500.0,0.00021,2]
[345500619,1734300638024,-500.0,0.00021,2]
[345500620,1734300638034,-500.0,0.00021,2]
[345500621,1734300638044,-500.0,0.00021,2]
[345500622,1734300638053,-500.0,0.00021,2]
[345500623,1734300638062,-500.0,0.00021,2]
[345500624,1734300638072,-500.0,0.00021,2]
[345500625,1734300638081,-500.0,0.00021,2]
[345500626,1734300638091,-500.0,0.00021,2]
[345500627,1734300638101,-500.0,0.00021,2]
[345500629,1734300638110,-500.0,0.00021,2]
[345500631,1734300638120,-500.0,0.00021,2]
[345500633,1734300638129,-500.0,0.00021,2]
[345500636,1734300638139,-500.0,0.00021,2]
[345500638,1734300638148,-500.0,0.00021,2]
[345500640,1734300638158,-500.0,0.00021,2]
[345500642,1734300638167,-500.0,0.00021,2]
[345500643,1734300638176,-500.0,0.00021,2]
[345500645,1734300638186,-500.0,0.00021,2]
[345500647,1734300638195,-500.0,0.00021,2]
[345500649,1734300638205,-500.0,0.00021,2]
[345500651,1734300638216,-500.0,0.00021,2]
[345500653,1734300638227,-500.0,0.00021,2]
[345500655,1734300638236,-500.0,0.00021,2]
[345500657,1734300638245,-500.0,0.00021,2]
[345500659,1734300638255,-387.0,0.00021,9]
[345500660,1734300638264,-158.0,0.00021,4]
[345500661,1734300638273,-864.9442,0.00021,2]
[345500662,1734300638283,-800.0,0.00021,2]
[345500663,1734300638292,-800.0,0.00021,2]
[345500664,1734300638301,-800.0,0.00021,2]
[345500665,1734300638311,-800.0,0.00021,2]
[345500666,1734300638321,-800.0,0.00021,2]
[345500667,1734300638330,-800.0,0.00021,2]
[345500668,1734300638341,-1390.52278817,0.00021007,2]
[345500669,1734300638350,-150.0,0.00021077,2]
[345500670,1734300638360,-184.21,0.00021086,2]
[345500671,1734300638372,-150.0,0.00021095,2]
[345500672,1734300638381,-504.94492789,0.00021095,3]
[345500673,1734300638392,-333.121606,0.00021098,4]
[345500674,1734300638401,-333.121606,0.00021098,3]
[345500675,1734300638411,-333.121606,0.00021098,2]
[345500676,1734300638420,-246.0,0.00021099,2]
[345500677,1734300638430,-1390.52278817,0.00021114,2]
[345500678,1734300638441,-3261.76,0.00021142,7]
[345500679,1734300638452,-3261.76,0.00021142,7]
[345500680,1734300638463,-5800.0,0.00021191,2]
[345500681,1734300638472,-333.121606,0.00021198,4]
[345500682,1734300638482,-333.121606,0.00021198,2]
[345500683,1734300638491,-333.121606,0.00021198,3]
[345500684,1734300638501,-365.69,0.00021198,3]
[345500685,1734300638511,-500.0,0.00021198,3]
[345500686,1734300638520,-542.55,0.00021198,3]
[345500687,1734300638530,-500.0,0.00021198,3]
[345500688,1734300638539,-500.0,0.00021198,3]
[345500689,1734300638549,-570.65,0.00021198,3]
[345500690,1734300638558,-500.0,0.00021198,3]
[345500691,1734300638568,-500.0,0.00021198,3]
[345500692,1734300638578,-226.74,0.00021198,3]
[345500693,1734300638587,-500.0,0.00021198,3]
[345500694,1734300638597,-204.93,0.00021198,3]
[345500695,1734300638606,-500.0,0.00021198,3]
[345500696,1734300638616,-5800.0,0.00021199,2]
[345500697,1734300638625,-1000.0,0.00021199,2]
[345500698,1734300638634,-272.07,0.00021199,3]
[345500699,1734300638643,-440.39,0.00021199,3]
[345500700,1734300638652,-153.62,0.00021199,3]
[345500701,1734300638662,-460.77,0.00021199,3]
[345500702,1734300638672,-500.0,0.00021199,3]
[345500703,1734300638681,-511.07,0.00021199,3]
[345500704,1734300638691,-247.17,0.00021199,3]
[345500705,1734300638701,-500.0,0.00021199,3]
[345500706,1734300638718,-500.0,0.00021199,3]
[345500707,1734300638727,-500.0,0.00021199,3]
[345500708,1734300638737,-294.48,0.00021199,3]
[345500709,1734300638747,-500.0,0.00021199,3]
[345500710,1734300638756,-485.47,0.00021199,3]
[345500711,1734300638766,-601.8,0.00021199,3]
[345500712,1734300638775,-5000.0,0.00021199,14]
[345500713,1734300638786,-500.0,0.00021199,3]
[345500714,1734300638796,-18576.3583487,0.000212,2]
[345500715,1734300638805,-3291.69146989,0.000212,2]
[345500716,1734300638815,-210000.0,0.000212,2]
[345500717,1734300638824,-500.0,0.00021207,3]
[345500718,1734300638834,-241.21,0.00021207,3]
[345500719,1734300638843,-500.0,0.00021207,3]
[345500721,1734300638853,-500.0,0.00021207,3]
[345500723,1734300638862,-500.0,0.00021207,3]
[345500724,1734300638871,-500.0,0.00021207,3]
[345500725,1734300638881,-500.0,0.00021207,3]
[345500726,1734300638890,-5800.0,0.00021208,2]
[345500727,1734300638899,-40000.0,0.0002121,2]
[345500728,1734300638908,-5800.0,0.00021216,2]
[345500729,1734300638918,-1390.52278817,0.00021221,2]
[345500730,1734300638927,-5800.0,0.00021224,2]
[345500731,1734300638936,-5800.0,0.00021233,2]
[345500732,1734300638946,-5800.0,0.00021233,2]
[345500733,1734300638955,-3877.59562602,0.0002124,2]
[345500734,1734300638966,-5800.0,0.00021241,2]
[345500735,1734300638975,-5800.0,0.00021241,2]
[345500736,1734300638985,-500.0,0.00021249,3]
[345500737,1734300638995,-395.98,0.00021249,3]
[345500738,1734300639004,-5800.0,0.0002125,2]
[345500739,1734300639014,-5800.0,0.0002125,2]
[345500740,1734300639023,-5800.0,0.0002125,2]
[345500741,1734300639032,-5800.0,0.0002125,2]
[345500742,1734300639041,-150.0,0.00021272,2]
[345500743,1734300639051,-2482.60275432,0.00021319,2]
[345500744,1734300639060,-1390.52278817,0.00021329,2]
[345500745,1734300639069,-150.0,0.00021335,2]
[345500746,1734300639079,-500.0,0.00021356,2]
[345500747,1734300639089,-201.0,0.0002137,2]
[345500748,1734300639099,-150.0,0.00021392,2]
[345500749,1734300639108,-333.121607,0.00021398,9]
[345500750,1734300639118,-333.121607,0.00021398,8]
[345500751,1734300639127,-333.121607,0.00021398,7]
[345500752,1734300639137,-333.121607,0.00021398,6]
[345500753,1734300639146,-333.121607,0.00021398,5]
[345500754,1734300639156,-333.121607,0.00021398,4]
[345500755,1734300639166,-333.121607,0.00021398,3]
[345500756,1734300639175,-333.121607,0.00021398,2]
[345500757,1734300639185,-675.0,0.000214,2]
[345500758,1734300639194,-202.92257612,0.000214,2]
[345500759,1734300639204,-158.51714257,0.000214,2]
[345500760,1734300639214,-3261.76,0.00021415,7]
[345500761,1734300639224,-3261.76,0.00021415,7]
[345500762,1734300639233,-1390.52278817,0.00021436,2]
[345500763,1734300639243,-420.0,0.00021454,2]
[345500764,1734300639254,-150.0,0.00021486,2]
[345500765,1734300639264,-333.121607,0.00021498,2]
[345500766,1734300639274,-333.121607,0.00021498,3]
[345500767,1734300639283,-333.121607,0.00021498,4]
[345500768,1734300639292,-333.121607,0.00021498,5]
[345500769,1734300639302,-333.121607,0.00021498,6]
[345500770,1734300639311,-333.121607,0.00021498,7]
[345500771,1734300639321,-333.121607,0.00021498,8]
[345500772,1734300639330,-333.121607,0.00021498,9]
[345500773,1734300639339,-500.0,0.00021498,3]
[345500774,1734300639348,-281.69,0.00021498,3]
[345500775,1734300639358,-622.27,0.00021498,3]
[345500776,1734300639367,-5000.0,0.00021498,14]
[345500777,1734300639377,-500.0,0.00021498,3]
[345500778,1734300639386,-500.0,0.00021499,3]
[345500779,1734300639394,-500.0,0.00021499,3]
[345500780,1734300639404,-500.0,0.00021499,3]
[345500781,1734300639413,-500.0,0.00021499,3]
[345500782,1734300639422,-500.0,0.00021499,3]
[345500783,1734300639432,-500.0,0.00021499,3]
[345500784,1734300639441,-500.0,0.00021499,3]
[345500785,1734300639450,-500.0,0.00021499,3]
[345500786,1734300639460,-500.0,0.00021499,3]
[345500787,1734300639471,-500.0,0.00021499,3]
[345500788,1734300639481,-999.0,0.00021499,2]
[345500789,1734300639490,-500.0,0.00021499,3]
[345500790,1734300639500,-500.0,0.00021499,3]
[345500791,1734300639510,-500.0,0.00021499,3]
[345500792,1734300639651,-500.0,0.00021499,3]
[345500793,1734300639662,-500.0,0.00021499,3]
[345500794,1734300639671,-500.0,0.00021499,3]
[345500795,1734300639681,-500.0,0.00021499,3]
[345500796,1734300639691,-500.0,0.00021499,3]
[345500797,1734300639702,-500.0,0.00021499,3]
[345500798,1734300639715,-500.0,0.00021499,3]
[345500799,1734300639725,-500.0,0.00021499,3]
[345500800,1734300639734,-500.0,0.00021499,3]
[345500801,1734300639743,-1305.02401361,0.00021499,14]
[345500802,1734300639754,-500.0,0.00021499,3]
[345500803,1734300639763,-500.0,0.00021499,3]
[345500804,1734300639773,-500.0,0.00021499,3]
[345500805,1734300639785,-215.39,0.00021499,3]
[345500806,1734300639795,-7057.78999738,0.000215,2]
[345500807,1734300639813,-269.24235348,0.000215,2]
[345500808,1734300639825,-391.62450768,0.000215,2]
[345500809,1734300639838,-337.75,0.000215,2]
[345500810,1734300639850,-1050.0,0.000215,2]
[345500811,1734300639861,-575.11167477,0.000215,2]
[345500812,1734300639873,-9436.2770545,0.000215,2]
[345500813,1734300639888,-6969.99111196,0.000215,2]
[345500814,1734300639900,-51302.0,0.000215,2]
[345500815,1734300639911,-2108.2840491,0.000215,2]
[345500816,1734300639923,-4090.01649661,0.000215,2]
[345500817,1734300639935,-898.83999975,0.000215,2]
[345500818,1734300639946,-57940.61557781,0.000215,2]
[345500819,1734300639958,-2100.0,0.000215,2]
[345500820,1734300639971,-14699.999998,0.000215,2]
[345500822,1734300639983,-1052.1,0.000215,2]
[345500824,1734300639994,-9836.79051668,0.000215,2]
[345500826,1734300640007,-853.51783339,0.000215,2]
[345500827,1734300640024,-20192.0,0.000215,2]
[345500828,1734300640035,-4000.0,0.000215,2]
[345500829,1734300640060,-511.10987742,0.000215,2]
[345500830,1734300640071,-23000.0,0.000215,2]
[345500831,1734300640082,-164008.78873474,0.000215,2]
[345500832,1734300640093,-3303.75148366,0.000215,2]
[345500833,1734300640104,-464.37712229,0.000215,2]
[345500834,1734300640115,-570.500004,0.000215,2]
[345500835,1734300640126,-943.21,0.000215,2]
[345500836,1734300640137,-769.06973705,0.000215,2]
[345500837,1734300640148,-4941.09052972,0.000215,2]
[345500838,1734300640159,-121492.84635824,0.000215,2]
[345500839,1734300640171,-3411.32384475,0.000215,2]
[345500841,1734300640182,-9445.1,0.000215,2]
[345500842,1734300640193,-31199.9999992,0.000215,2]
[345500843,1734300640205,-607.275015,0.000215,2]
[345500845,1734300640476,-50012.09936861,0.000215,2]
[345500846,1734300640487,-2448.40278486,0.000215,2]
[345500847,1734300640498,-6069.65471838,0.000215,2]
[345500848,1734300640509,-366.26,0.000215,2]
[345500849,1734300640520,-1164.0,0.000215,2]
[345500850,1734300640531,-313.70709762,0.000215,2]
[345500851,1734300640543,-59456.81159505,0.000215,2]
[345500852,1734300640621,-141525.51848164,0.000215,2]
[345500853,1734300640633,-472.89724137,0.000215,2]
[345500854,1734300640645,-48573.14409178,0.000215,2]
[345500855,1734300640656,-2110.0,0.000215,2]
[345500856,1734300640667,-151.0,0.000215,2]
[345500857,1734300640679,-151.0,0.000215,2]
[345500858,1734300640688,-387.0,0.000215,9]
[345500859,1734300640698,-151.0,0.000215,2]
[345500860,1734300640711,-151.0,0.000215,2]
[345500861,1734300640723,-151.0,0.000215,2]
[345500862,1734300640733,-150.0,0.0002154,2]
[345500863,1734300640742,-1390.52278817,0.00021543,2]
[345500864,1734300640753,-202.9225761,0.00021567,2]
[345500865,1734300640762,-1000.0,0.00021577,2]
[345500866,1734300640772,-333.121607,0.00021598,9]
[345500867,1734300640783,-333.121607,0.00021598,8]
[345500868,1734300640793,-333.121607,0.00021598,7]
[345500869,1734300640804,-333.121607,0.00021598,6]
[345500870,1734300640814,-333.121607,0.00021598,5]
[345500871,1734300640825,-333.121607,0.00021598,4]
[345500872,1734300640834,-333.121607,0.00021598,3]
[345500873,1734300640844,-333.121607,0.00021598,2]
[345500874,1734300640855,-1390.52278817,0.0002165,2]
[345500875,1734300640865,-3261.76,0.00021689,7]
[345500876,1734300640876,-3261.76,0.00021689,7]
[345500877,1734300640885,-333.121607,0.00021698,2]
[345500878,1734300640895,-333.121607,0.00021698,3]
[345500879,1734300640904,-333.121607,0.00021698,4]
[345500880,1734300640915,-333.121607,0.00021698,5]
[345500881,1734300640925,-333.121607,0.00021698,6]
[345500882,1734300640935,-333.121607,0.00021698,7]
[345500883,1734300640944,-333.121607,0.00021698,8]
[345500884,1734300640955,-333.121607,0.00021698,9]
[345500886,1734300640965,-202.9225761,0.00021733,2]
[345500887,1734300640975,-201.0,0.0002174,2]
[345500888,1734300640984,-1390.52278817,0.00021757,2]
[345500889,1734300640993,-330.02,0.0002179,2]
[345500890,1734300641002,-333.121607,0.00021798,9]
[345500891,1734300641012,-333.121607,0.00021798,8]
[345500892,1734300641021,-333.121607,0.00021798,7]
[345500893,1734300641031,-333.121607,0.00021798,6]
[345500894,1734300641040,-333.121607,0.00021798,5]
[345500895,1734300641049,-333.121607,0.00021798,4]
[345500896,1734300641059,-333.121607,0.00021798,3]
[345500897,1734300641069,-333.121607,0.00021798,2]
[345500898,1734300641079,-150.0,0.00021801,2]
[345500899,1734300641089,-1881.0,0.00021825,2]
[345500900,1734300641100,-150.0,0.00021826,2]
[345500901,1734300641111,-150.0,0.0002184,2]
[345500902,1734300641121,-523.09,0.00021846,2]
[345500903,1734300641132,-150.0,0.00021855,2]
[345500904,1734300641142,-2482.60275432,0.0002186,2]
[345500905,1734300641151,-35697.0,0.00021863,2]
[345500906,1734300641160,-1390.52278817,0.00021864,2]
[345500907,1734300641170,-333.121607,0.00021898,2]
[345500908,1734300641179,-333.121607,0.00021898,3]
[345500909,1734300641188,-333.121607,0.00021898,4]
[345500910,1734300641197,-333.121607,0.00021898,5]
[345500911,1734300641207,-333.121607,0.00021898,6]
[345500912,1734300641218,-333.121607,0.00021898,7]
[345500913,1734300641229,-333.121607,0.00021898,8]
[345500914,1734300641239,-333.121607,0.00021898,9]
[345500915,1734300641248,-150.0,0.00021899,2]
[345500916,1734300641257,-500.0,0.00021899,3]
[345500917,1734300641266,-30016.0,0.000219,3]
[345500918,1734300641275,-200.0,0.000219,2]
[345500919,1734300641284,-202.9225761,0.000219,2]
[345500920,1734300641293,-977.53327527,0.000219,2]
[345500921,1734300641302,-977.53327526,0.000219,2]
[345500922,1734300641311,-977.53327526,0.000219,2]
[345500923,1734300641320,-977.53327526,0.000219,2]
[345500924,1734300641329,-977.53327526,0.000219,2]
[345500925,1734300641339,-977.53327526,0.000219,2]
[345500926,1734300641348,-977.53327526,0.000219,2]
[345500927,1734300641357,-977.53327526,0.000219,2]
[345500928,1734300641367,-977.53327526,0.000219,2]
[345500929,1734300641375,-203.41,0.00021916,3]
[345500930,1734300641384,-530.05,0.00021917,3]
[345500931,1734300641394,-530.05,0.00021917,3]
[345500932,1734300641405,-530.05,0.00021917,3]
[345500933,1734300641414,-530.05,0.00021917,3]
[345500934,1734300641424,-530.05,0.00021917,3]
[345500935,1734300641433,-530.05,0.00021917,3]
[345500936,1734300641442,-530.05,0.00021917,3]
[345500937,1734300641452,-530.05,0.00021917,3]
[345500938,1734300641461,-530.05,0.00021917,3]
[345500939,1734300641473,-530.05,0.00021917,3]
[345500940,1734300641482,-530.05,0.00021917,3]
[345500941,1734300641491,-530.05,0.00021917,3]
[345500942,1734300641499,-530.05,0.00021917,3]
[345500943,1734300641509,-530.05,0.00021917,3]
[345500944,1734300641519,-530.05,0.00021917,3]
[345500945,1734300641530,-530.05,0.00021917,3]
[345500946,1734300641540,-530.05,0.00021917,3]
[345500947,1734300641549,-530.05,0.00021917,3]
[345500948,1734300641558,-530.05,0.00021917,3]
[345500949,1734300641567,-1034.92,0.00021917,3]
[345500950,1734300641577,-1034.92,0.00021917,3]
[345500951,1734300641585,-1034.92,0.00021917,3]
[345500952,1734300641594,-1034.92,0.00021917,3]
[345500953,1734300641603,-1034.92,0.00021917,3]
[345500954,1734300641612,-1034.92,0.00021917,3]
[345500955,1734300641621,-1034.92,0.00021917,3]
[345500956,1734300641630,-1034.92,0.00021917,3]
[345500957,1734300641639,-3489.14,0.00021917,3]
[345500958,1734300641648,-3489.14,0.00021917,3]
[345500959,1734300641657,-3489.14,0.00021917,3]
[345500960,1734300641666,-3489.14,0.00021917,3]
[345500961,1734300641675,-3489.14,0.00021917,3]
[345500962,1734300641684,-3489.14,0.00021917,3]
[345500963,1734300641693,-3489.14,0.00021917,3]
[345500964,1734300641706,-3489.14,0.00021917,3]
[345500965,1734300641721,-150.0,0.00021918,5]
[345500966,1734300641730,-150.0,0.00021927,2]
[345500967,1734300641747,-150.0,0.00021961,2]
[345500968,1734300641755,-3261.76,0.00021962,7]
[345500969,1734300641764,-3261.76,0.00021962,7]
[345500970,1734300641773,-1390.52278817,0.00021971,2]